[Event "DVM U20w 2019"]
[Site "Braunschweig"]
[Date "2019.12.28"]
[Round "4"]
[White "Puls, Luisa"]
[Black "de Veer, Mara"]
[Result "1/2-1/2"]
[ECO "B12"]
[WhiteElo "1551"]
[BlackElo "1447"]
[Annotator "NA"]
[PlyCount "63"]
[EventDate "2019.12.27"]
[EventType "team-tourn"]
[EventRounds "7"]
[EventCountry "GER"]
[SourceTitle "playchess.com"]
[Source "ChessBase"]
[SourceQuality "1"]
[WhiteTeam "SG Güstrow/Teterow"]
[BlackTeam "SC Borussia Lichtenberg"]
[TimeControl "40/5400+30:1800+30"]

1. e4 {[%emt 0:00:00]} c6 {[%emt 0:00:00]} 2. d4 {[%emt 0:00:00]} d5 {[%emt 0:00:00]} 3. e5 {[%emt 0:00:06]} Bf5 {[%emt 0:00:00]} 4. Nf3 {[%emt 0:00:41]} Bg6 {[%emt 0:00:16]} 5. Be2 {[%emt 0:04:27]} e6 {[%emt 0:00:28]} 6. Bf4 {[%emt 0:04:33]} Nd7 {[%emt 0:02:16]} 7. Nbd2 {[%emt 0:02:32]} Ne7 {[%emt 0:07:50]} 8. O-O {[%emt 0:04:14]} h6 {[%emt 0:04:00]} 9. c4 {[%emt 0:04:28]} b6 {[%emt 0:15:34]} 10. a3 {[%emt 0:18:20]} Nc8 {[%emt 0:07:41]} 11. Rc1 {[%emt 0:08:06]} Be7 {[%emt 0:05:24]} 12. cxd5 {[%emt 0:05:47]} cxd5 {[%emt 0:00:58]} 13. Bb5 {[%emt 0:00:56]} O-O {[%emt 0:01:32]} 14. Qa4 {[%emt 0:01:09]} Nb8 {[%emt 0:02:25]} 15. Rc3 {[%emt 0:09:26]} a6 {[%emt 0:03:52]} 16. Rfc1 {[%emt 0:02:23]} Na7 {[%emt 0:04:52]} 17. Bd3 {[%emt 0:09:05]} Bxd3 {[%emt 0:01:34]} 18. Rxd3 {[%emt 0:00:13]} b5 {[%emt 0:00:36]} 19. Qd1 {[%emt 0:02:11]} Nbc6 {[%emt 0:02:19]} 20. Nb3 {[%emt 0:01:46]} Re8 {[%emt 0:14:39]} 21. Nc5 {[%emt 0:05:17]} a5 {[%emt 0:04:58]} 22. Bg3 {[%emt 0:03:18]} Rf8 {[%emt 0:03:10]} 23. Ne1 {[%emt 0:02:11]} Qc8 {[%emt 0:03:54]} 24. Qc2 {[%emt 0:04:16]} Rb8 {[%emt 0:01:29]} 25. f4 {[%emt 0:02:10]} Rb6 {[%emt 0:01:55]} 26. Nf3 {[%emt 0:01:26]} Re8 {[%emt 0:02:47]} 27. Bf2 {[%emt 0:01:48]} Qd8 {[%emt 0:02:30]} 28. Nb3 {[%emt 0:01:36]} a4 {[%emt 0:01:12]} 29. Nc5 {[%emt 0:00:08]} Qc8 {[%emt 0:04:25]} 30. Rc3 {[%emt 0:00:36] normal} Rd8 {[%emt 0:00:39]} 31. Be1 {[%emt 0:01:03]} Qb8 32. Rd3 {[%emt 0:00:55] normal} 1/2-1/2

[Event "DVM U20w 2019"]
[Site "Braunschweig"]
[Date "2019.12.28"]
[Round "4"]
[White "Hallfarth, Luise"]
[Black "Peglau, Dora"]
[Result "0-1"]
[ECO "D02"]
[WhiteElo "1517"]
[BlackElo "1502"]
[Annotator "NA"]
[PlyCount "46"]
[EventDate "2019.12.27"]
[EventType "team-tourn"]
[EventRounds "7"]
[EventCountry "GER"]
[SourceTitle "playchess.com"]
[Source "ChessBase"]
[SourceQuality "1"]
[WhiteTeam "SK Nordhorn-Blanke"]
[BlackTeam "Schachzentrum Seeblick"]
[TimeControl "40/5400+30:1800+30"]

1. d4 {[%emt 0:00:00]} d5 {[%emt 0:00:00]} 2. Nf3 {[%emt 0:00:00]} Nf6 {[%emt 0:00:00]} 3. Bf4 {[%emt 0:00:00]} Bf5 {[%emt 0:00:00]} 4. e3 {[%emt 0:00:23]} e6 {[%emt 0:00:00]} 5. c3 {[%emt 0:02:45]} Bd6 {[%emt 0:00:23]} 6. Bd3 {[%emt 0:02:56]} Bg6 {[%emt 0:03:07]} 7. O-O {[%emt 0:01:26]} O-O {[%emt 0:00:21]} 8. h3 {[%emt 0:01:23]} Bxf4 {[%emt 0:01:10]} 9. exf4 {[%emt 0:00:13]} Nbd7 {[%emt 0:00:26]} 10. Ne5 {[%emt 0:00:45]} c5 {[%emt 0:10:32]} 11. Bxg6 {[%emt 0:09:12]} hxg6 {[%emt 0:01:26]} 12. Nd2 {[%emt 0:00:38]} cxd4 {[%emt 0:03:11]} 13. cxd4 {[%emt 0:00:24]} Qb6 {[%emt 0:04:46]} 14. Nb3 {[%emt 0:01:37]} Rac8 {[%emt 0:01:14]} 15. Rc1 {[%emt 0:01:53]} Rc7 {[%emt 0:01:45]} 16. Qd2 {[%emt 0:03:40]} Rfc8 {[%emt 0:02:15]} 17. Rxc7 {[%emt 0:01:25]} Rxc7 {[%emt 0:00:18]} 18. Rc1 {[%emt 0:00:23]} Ne4 {[%emt 0:21:48]} 19. Qe3 {[%emt 0:07:36]} Ndf6 {[%emt 0:04:54]} 20. f3 {[%emt 0:02:18]} Ng3 {[%emt 0:05:52]} 21. Kh2 {[%emt 0:01:48]} Nf5 {[%emt 0:01:47]} 22. Qd2 {[%emt 0:00:51]} Nd6 {[%emt 0:20:42]} 23. Nc5 {[%emt 0:01:02] normal} Qb5 {[%emt 0:04:11] normal} 0-1

[Event "DVM U20w 2019"]
[Site "Braunschweig"]
[Date "2019.12.28"]
[Round "4"]
[White "Krause, Ricarda Sophie"]
[Black "Oberhofer, Marie"]
[Result "0-1"]
[ECO "B78"]
[WhiteElo "1491"]
[BlackElo "1700"]
[Annotator "NA"]
[PlyCount "70"]
[EventDate "2019.12.27"]
[EventType "team-tourn"]
[EventRounds "7"]
[EventCountry "GER"]
[SourceTitle "playchess.com"]
[Source "ChessBase"]
[SourceQuality "1"]
[WhiteTeam "SC Erlangen 48/88"]
[BlackTeam "SC Bavaria Regensburg"]
[TimeControl "40/5400+30:1800+30"]

1. e4 {[%emt 0:00:00]} c5 {[%emt 0:00:00]} 2. Nf3 {[%emt 0:00:00]} d6 {[%emt 0:00:00]} 3. d4 {[%emt 0:00:00]} cxd4 {[%emt 0:00:00]} 4. Nxd4 {[%emt 0:00:00]} Nf6 {[%emt 0:00:00]} 5. Nc3 {[%emt 0:00:09]} g6 {[%emt 0:00:01]} 6. Be3 {[%emt 0:01:26]} Bg7 {[%emt 0:00:09]} 7. f3 {[%emt 0:00:50]} O-O {[%emt 0:00:14]} 8. Qd2 {[%emt 0:03:14]} Nc6 {[%emt 0:00:11]} 9. Bc4 {[%emt 0:02:52]} Bd7 {[%emt 0:00:30]} 10. O-O-O {[%emt 0:01:03]} Rc8 {[%emt 0:00:09]} 11. Bb3 {[%emt 0:01:34]} Ne5 {[%emt 0:00:53]} 12. Bh6 {[%emt 0:04:58]} Nc4 {[%emt 0:06:04]} 13. Bxc4 {[%emt 0:06:02]} Rxc4 {[%emt 0:00:25]} 14. Bxg7 {[%emt 0:01:22]} Kxg7 {[%emt 0:00:06]} 15. h4 {[%emt 0:05:52]} h5 {[%emt 0:00:35]} 16. g4 {[%emt 0:04:28]} Rh8 {[%emt 0:09:54]} 17. gxh5 Rxh5 {[%emt 0:02:23]} 18. Rdg1 {[%emt 0:26:08]} Qh8 {[%emt 0:10:20]} 19. Qf2 {[%emt 0:16:57]} Qh6+ {[%emt 0:11:23]} 20. Kb1 {[%emt 0:01:11]} Qf4 {[%emt 0:10:36]} 21. Nb3 {[%emt 0:02:38]} Rxc3 {[%emt 0:04:12]} 22. bxc3 {[%emt 0:00:53]} a5 {[%emt 0:15:46]} 23. Qg2 {[%emt 0:06:05]} a4 {[%emt 0:03:41]} 24. Nd4 {[%emt 0:03:03]} Qe3 {[%emt 0:06:19]} 25. Ne2 {[%emt 0:01:52]} Rb5+ {[%emt 0:01:34]} 26. Ka1 {[%emt 0:00:21]} Qd2 {[%emt 0:02:03]} 27. Rc1 {[%emt 0:03:15]} a3 {[%emt 0:02:38]} 28. Rhd1 {[%emt 0:02:44]} Qe3 {[%emt 0:03:07]} 29. Rb1 {[%emt 0:01:56]} Rxb1+ {[%emt 0:03:13]} 30. Rxb1 {[%emt 0:00:08]} Qd2 {[%emt 0:00:25]} 31. Rc1 {[%emt 0:01:02]} Bb5 {[%emt 0:00:54]} 32. Qg5 {[%emt 0:01:15]} Qxe2 {[%emt 0:00:39]} 33. Rb1 {[%emt 0:00:44]} Ba4 {[%emt 0:02:26]} 34. Qc1 {[%emt 0:01:35]} Qxf3 {[%emt 0:01:18] normal} 35. Qd2 {[%emt 0:01:15]} Qxe4 {[%emt 0:01:39] normal} 0-1

[Event "DVM U20w 2019"]
[Site "Braunschweig"]
[Date "2019.12.28"]
[Round "4"]
[White "Adelhardt, Lisa"]
[Black "Bardorz, Jana"]
[Result "0-1"]
[ECO "C55"]
[WhiteElo "1418"]
[BlackElo "2054"]
[Annotator "NA"]
[PlyCount "100"]
[EventDate "2019.12.27"]
[EventType "team-tourn"]
[EventRounds "7"]
[EventCountry "GER"]
[SourceTitle "playchess.com"]
[Source "ChessBase"]
[SourceQuality "1"]
[WhiteTeam "SC Erlangen 48/88"]
[BlackTeam "SC Bavaria Regensburg"]
[TimeControl "40/5400+30:1800+30"]

1. e4 {[%emt 0:00:00]} e5 {[%emt 0:00:00]} 2. Nf3 {[%emt 0:00:00]} Nc6 {[%emt 0:00:00]} 3. Bc4 {[%emt 0:00:00]} Nf6 {[%emt 0:00:00]} 4. d4 {[%emt 0:00:00]} exd4 {[%emt 0:03:48]} 5. O-O {[%emt 0:00:14]} Bc5 {[%emt 0:06:01]} 6. e5 {[%emt 0:06:11]} d5 {[%emt 0:05:55]} 7. Bb5 {[%emt 0:02:54]} Ne4 {[%emt 0:03:00]} 8. Bxc6+ {[%emt 0:05:04]} bxc6 {[%emt 0:00:37]} 9. Nxd4 {[%emt 0:00:59]} Ba6 {[%emt 0:12:37]} 10. Re1 {[%emt 0:02:40]} Nxf2 {[%emt 0:05:12]} 11. Kxf2 {[%emt 0:03:08]} Qh4+ {[%emt 0:00:39]} 12. g3 {[%emt 0:01:17]} Qxd4+ {[%emt 0:08:19]} 13. Qxd4 {[%emt 0:02:10]} Bxd4+ {[%emt 0:00:06]} 14. Kg2 {[%emt 0:03:25]} O-O {[%emt 0:05:28]} 15. c3 {[%emt 0:02:57]} Bb6 {[%emt 0:02:14]} 16. Nd2 {[%emt 0:09:27]} c5 {[%emt 0:05:09]} 17. Nf3 {[%emt 0:03:11]} d4 {[%emt 0:01:56]} 18. cxd4 {[%emt 0:05:57]} cxd4 {[%emt 0:00:10]} 19. Bf4 {[%emt 0:01:27]} c5 {[%emt 0:04:17]} 20. Rac1 {[%emt 0:06:12]} Rfe8 {[%emt 0:03:26]} 21. Red1 {[%emt 0:03:28]} h6 {[%emt 0:05:19]} 22. h4 {[%emt 0:05:52]} Rad8 {[%emt 0:02:15]} 23. b3 {[%emt 0:03:32]} Rd5 {[%emt 0:03:26]} 24. Rd2 {[%emt 0:03:13]} Bb5 {[%emt 0:03:19]} 25. Kf2 {[%emt 0:08:51]} Red8 {[%emt 0:01:27]} 26. Rcd1 {[%emt 0:02:16]} a5 {[%emt 0:04:49]} 27. Rb1 {[%emt 0:03:52]} Bd7 {[%emt 0:01:21]} 28. Ne1 {[%emt 0:01:46]} Bf5 {[%emt 0:01:12]} 29. Rc1 {[%emt 0:01:48]} Bc7 {[%emt 0:02:31]} 30. Nf3 {[%emt 0:05:46]} Kf8 {[%emt 0:01:37]} 31. Re1 {[%emt 0:02:04]} Re8 {[%emt 0:01:02]} 32. Red1 {[%emt 0:02:39]} Bg4 {[%emt 0:01:05]} 33. Rd3 {[%emt 0:02:10]} Bxf3 {[%emt 0:02:01]} 34. Kxf3 {[%emt 0:00:45]} Bxe5 {[%emt 0:00:49]} 35. Bxe5 {[%emt 0:00:28]} Rdxe5 {[%emt 0:00:00]} 36. R1d2 {[%emt 0:00:00]} Ke7 {[%emt 0:01:11]} 37. Kf2 {[%emt 0:01:32]} Kd6 {[%emt 0:00:36]} 38. Rf3 {[%emt 0:00:15]} f6 {[%emt 0:00:44]} 39. Rf4 {[%emt 0:00:45]} Re4 {[%emt 0:01:05]} 40. Rf3 {[%emt 0:00:28]} Re3 {[%emt 0:02:00]} 41. Rf4 {[%emt 0:30:34]} R8e4 {[%emt 0:31:37]} 42. Rf5 {[%emt 0:00:55]} Re5 {[%emt 0:01:55]} 43. Rf4 {[%emt 0:00:13]} R3e4 {[%emt 0:00:06]} 44. Rf3 {[%emt 0:00:09]} Kd5 {[%emt 0:00:00]} 45. Rc2 {[%emt 0:00:00]} Re3 {[%emt 0:00:00]} 46. Rf4 {[%emt 0:00:00]} d3 {[%emt 0:00:00]} 47. Rc1 {[%emt 0:00:00]} Re2+ {[%emt 0:00:00]} 48. Kf3 {[%emt 0:00:00]} d2 {[%emt 0:00:00]} 49. Rd1 {[%emt 0:00:00]} R5e3+ {[%emt 0:00:00] normal} 50. Kg4 {[%emt 0:00:00]} Rd3 {[%emt 0:00:00] normal} 0-1

[Event "DVM U20w 2019"]
[Site "Braunschweig"]
[Date "2019.12.28"]
[Round "4"]
[White "Relógio Stauber, Anna"]
[Black "Zoll, Cindy"]
[Result "0-1"]
[ECO "A80"]
[WhiteElo "1396"]
[BlackElo "1387"]
[Annotator "NA"]
[PlyCount "110"]
[EventDate "2019.12.27"]
[EventType "team-tourn"]
[EventRounds "7"]
[EventCountry "GER"]
[SourceTitle "playchess.com"]
[Source "ChessBase"]
[SourceQuality "1"]
[WhiteTeam "SC Borussia Lichtenberg"]
[BlackTeam "SG Güstrow/Teterow"]
[TimeControl "40/5400+30:1800+30"]

1. d4 {[%emt 0:00:00]} f5 {[%emt 0:00:00]} 2. Nf3 {[%emt 0:00:01]} Nf6 {[%emt 0:00:03]} 3. e3 {[%emt 0:01:00]} e6 {[%emt 0:00:16]} 4. c4 {[%emt 0:00:33]} d5 {[%emt 0:00:22]} 5. Nc3 {[%emt 0:00:41]} c6 {[%emt 0:00:18]} 6. Bd3 {[%emt 0:00:50]} Bd6 {[%emt 0:00:21]} 7. b3 {[%emt 0:01:52]} O-O {[%emt 0:01:19]} 8. O-O {[%emt 0:00:47]} Ne4 {[%emt 0:00:38]} 9. Bxe4 {[%emt 0:02:41]} fxe4 {[%emt 0:00:15]} 10. Nd2 {[%emt 0:01:28]} Qg5 {[%emt 0:08:18]} 11. Qe2 {[%emt 0:06:23]} e5 {[%emt 0:02:05]} 12. cxd5 {[%emt 0:08:18]} cxd5 {[%emt 0:20:05]} 13. Nb5 {[%emt 0:05:06]} Qg6 {[%emt 0:09:16]} 14. Nxd6 {[%emt 0:02:18]} Qxd6 {[%emt 0:00:11]} 15. Bb2 {[%emt 0:02:01]} Nc6 {[%emt 0:01:14]} 16. dxe5 {[%emt 0:02:27]} Nxe5 {[%emt 0:00:18]} 17. Bxe5 {[%emt 0:00:23]} Qxe5 {[%emt 0:00:12]} 18. f3 {[%emt 0:01:57]} Qh5 {[%emt 0:04:16]} 19. Rae1 {[%emt 0:03:44]} exf3 {[%emt 0:02:39]} 20. Rxf3 {[%emt 0:01:50]} Bg4 {[%emt 0:03:23]} 21. Rxf8+ {[%emt 0:00:41]} Rxf8 {[%emt 0:00:10]} 22. Qb5 {[%emt 0:03:39]} b6 {[%emt 0:13:25]} 23. e4 {[%emt 0:02:23]} Be6 {[%emt 0:04:53]} 24. exd5 {[%emt 0:00:56]} Bxd5 {[%emt 0:01:57]} 25. Rf1 {[%emt 0:03:22]} Rd8 {[%emt 0:05:43]} 26. Nc4 {[%emt 0:05:38]} Qg5 {[%emt 0:06:51]} 27. g3 {[%emt 0:06:30]} Qe7 {[%emt 0:00:57]} 28. Nd2 {[%emt 0:03:16]} Qe3+ {[%emt 0:02:52]} 29. Rf2 {[%emt 0:03:48]} Bb7 {[%emt 0:04:04]} 30. Qe2 {[%emt 0:01:21]} Qxe2 {[%emt 0:05:50]} 31. Rxe2 {[%emt 0:00:08]} Ba6 32. Rf2 {[%emt 0:01:53]} Bb7 {[%emt 0:01:07]} 33. Nf3 {[%emt 0:01:41]} Rd1+ {[%emt 0:00:49]} 34. Kg2 {[%emt 0:00:40]} Rd3 {[%emt 0:00:48]} 35. g4 {[%emt 0:01:54]} g5 {[%emt 0:01:27]} 36. Kg3 {[%emt 0:02:28]} Kg7 {[%emt 0:00:24]} 37. h4 gxh4+ {[%emt 0:00:26]} 38. Kf4 {[%emt 0:02:44]} h3 {[%emt 0:01:04]} 39. Ng5 {[%emt 0:05:10]} h6 {[%emt 0:00:31]} 40. Nf3 {[%emt 0:02:06]} Rd1 {[%emt 0:00:40]} 41. Rh2 {[%emt 0:30:32]} Bxf3 {[%emt 0:06:11]} 42. Kxf3 {[%emt 0:00:00]} Rd3+ {[%emt 0:00:18]} 43. Kf4 {[%emt 0:00:00]} Kg6 {[%emt 0:01:51]} 44. Re2 {[%emt 0:00:00]} Kf6 {[%emt 0:02:59]} 45. Rf2 {[%emt 0:00:00]} Kg6 {[%emt 0:01:56]} 46. Rh2 {[%emt 0:00:00]} h5 {[%emt 0:03:34]} 47. Re2 {[%emt 0:00:00]} Rd4+ {[%emt 0:01:13]} 48. Ke5 {[%emt 0:00:00]} Rxg4 {[%emt 0:00:26]} 49. Rh2 {[%emt 0:00:00]} Rg3 {[%emt 0:01:31]} 50. Kf4 {[%emt 0:00:00]} h4 51. b4 {[%emt 0:00:00]} Kh5 {[%emt 0:01:39]} 52. Kf5 {[%emt 0:00:00]} Rf3+ {[%emt 0:00:40]} 53. Ke4 {[%emt 0:00:00]} Kg4 {[%emt 0:00:21]} 54. Kd4 {[%emt 0:00:00]} Kg3 {[%emt 0:00:19] normal} 55. Re2 {[%emt 0:00:00]} h2 {[%emt 0:00:24] normal} 0-1

[Event "DVM U20w 2019"]
[Site "Braunschweig"]
[Date "2019.12.28"]
[Round "4"]
[White "Malinowsky, Celina"]
[Black "Wilhelm, Anna-Lena"]
[Result "1/2-1/2"]
[ECO "B23"]
[WhiteElo "1293"]
[BlackElo "1291"]
[Annotator "NA"]
[PlyCount "107"]
[EventDate "2019.12.27"]
[EventType "team-tourn"]
[EventRounds "7"]
[EventCountry "GER"]
[SourceTitle "playchess.com"]
[Source "ChessBase"]
[SourceQuality "1"]
[WhiteTeam "SK Doppelbauer Kiel"]
[BlackTeam "SG Blau-Weiß Stadtilm"]
[TimeControl "40/5400+30:1800+30"]

1. e4 {[%emt 0:00:00]} c5 {[%emt 0:00:00]} 2. Nc3 {[%emt 0:00:25]} d6 {[%emt 0:01:27]} 3. Bc4 {[%emt 0:01:24]} Nf6 {[%emt 0:00:49]} 4. d3 {[%emt 0:00:41]} Nc6 {[%emt 0:04:45]} 5. a3 {[%emt 0:00:24]} a5 {[%emt 0:04:32]} 6. f4 {[%emt 0:02:02]} e6 {[%emt 0:03:53]} 7. Nf3 {[%emt 0:04:27]} d5 {[%emt 0:04:04]} 8. Ba2 {[%emt 0:04:26]} Rb8 {[%emt 0:10:05]} 9. O-O {[%emt 0:01:59]} Be7 {[%emt 0:05:27]} 10. Qe1 {[%emt 0:03:58]} Nd4 {[%emt 0:10:52]} 11. Nxd4 {[%emt 0:13:19]} cxd4 {[%emt 0:03:26]} 12. Nd1 {[%emt 0:01:26]} O-O {[%emt 0:12:58]} 13. e5 {[%emt 0:02:12]} Ne8 {[%emt 0:10:48]} 14. Kh1 {[%emt 0:05:02]} f5 {[%emt 0:07:25]} 15. Qe2 {[%emt 0:02:52]} g6 {[%emt 0:02:41]} 16. Nf2 {[%emt 0:01:43]} Ng7 {[%emt 0:00:27]} 17. Bd2 {[%emt 0:01:01]} Bd7 {[%emt 0:04:34]} 18. Qe1 {[%emt 0:00:42]} b6 {[%emt 0:00:09]} 19. Rb1 {[%emt 0:01:09]} Rb7 {[%emt 0:01:05]} 20. Qe2 {[%emt 0:05:29]} Rc7 {[%emt 0:00:36]} 21. Rbc1 {[%emt 0:00:23]} Qc8 {[%emt 0:00:39]} 22. Qd1 {[%emt 0:00:37]} Bb5 {[%emt 0:01:36]} 23. c3 {[%emt 0:04:48]} dxc3 {[%emt 0:01:38]} 24. Bxc3 {[%emt 0:01:47]} Bxa3 {[%emt 0:00:57]} 25. Qb3 {[%emt 0:02:03]} Bxb2 {[%emt 0:02:40]} 26. Bxb2 {[%emt 0:00:36]} Bc6 {[%emt 0:01:36]} 27. Ba3 {[%emt 0:01:58]} Rff7 {[%emt 0:00:27]} 28. Bd6 {[%emt 0:00:18]} Rb7 {[%emt 0:00:53]} 29. Qb5 {[%emt 0:03:11]} Bxb5 {[%emt 0:01:47]} 30. Rxc8+ {[%emt 0:00:12]} Ne8 {[%emt 0:00:03]} 31. Rfc1 {[%emt 0:03:39]} Bd7 {[%emt 0:00:19]} 32. R8c3 {[%emt 0:03:31]} Kg7 {[%emt 0:00:51]} 33. d4 {[%emt 0:01:00]} Kg8 {[%emt 0:00:52]} 34. Nd1 {[%emt 0:01:02]} Kg7 {[%emt 0:00:30]} 35. Bb3 {[%emt 0:00:14]} a4 {[%emt 0:00:22]} 36. Ba2 {[%emt 0:00:08]} Kg8 {[%emt 0:00:31]} 37. Nb2 {[%emt 0:00:15]} Kg7 {[%emt 0:00:17]} 38. Nd3 {[%emt 0:00:12]} Kg8 {[%emt 0:01:29]} 39. Nb4 {[%emt 0:00:35]} Nxd6 {[%emt 0:00:35]} 40. exd6 {[%emt 0:00:19]} Kg7 {[%emt 0:00:58]} 41. Nc6 {[%emt 0:32:31]} Rf8 {[%emt 0:04:18]} 42. Ne5 {[%emt 0:00:00]} Bb5 {[%emt 0:03:10]} 43. Rc7+ {[%emt 0:00:00]} Rxc7 {[%emt 0:00:36]} 44. Rxc7+ {[%emt 0:00:00]} Kf6 {[%emt 0:00:06]} 45. d7 {[%emt 0:00:00]} Rd8 {[%emt 0:01:44]} 46. Rc8 {[%emt 0:00:00]} Ke7 {[%emt 0:01:16]} 47. Rc7 {[%emt 0:00:00]} Bxd7 {[%emt 0:01:53]} 48. Rb7 {[%emt 0:00:00]} Ke8 {[%emt 0:01:40]} 49. Nxd7 Rxd7 {[%emt 0:00:17]} 50. Rxb6 {[%emt 0:00:00]} Rc7 {[%emt 0:01:01]} 51. Rxe6+ {[%emt 0:00:00]} Kd7 {[%emt 0:01:11]} 52. Re1 {[%emt 0:00:00]} Kd6 {[%emt 0:00:36]} 53. h3 {[%emt 0:00:00]} Rc2 {[%emt 0:00:23] normal} 54. Ra1 {[%emt 0:02:45] normal} 1/2-1/2

[Event "DVM U20w 2019"]
[Site "Braunschweig"]
[Date "2019.12.28"]
[Round "4"]
[White "Stephan, Lia"]
[Black "Birner, Lucy Jasmin"]
[Result "1/2-1/2"]
[ECO "A21"]
[WhiteElo "1232"]
[BlackElo "1611"]
[Annotator "NA"]
[PlyCount "45"]
[EventDate "2019.12.27"]
[EventType "team-tourn"]
[EventRounds "7"]
[EventCountry "GER"]
[SourceTitle "playchess.com"]
[Source "ChessBase"]
[SourceQuality "1"]
[WhiteTeam "SG Blau-Weiß Stadtilm"]
[BlackTeam "SK Doppelbauer Kiel"]
[TimeControl "40/5400+30:1800+30"]

1. c4 {[%emt 0:00:00]} e5 {[%emt 0:00:45]} 2. Nc3 {[%emt 0:00:00]} Bc5 {[%emt 0:00:35]} 3. g3 {[%emt 0:01:00]} Nf6 {[%emt 0:01:07]} 4. Bg2 {[%emt 0:00:28]} c6 {[%emt 0:00:14]} 5. e4 {[%emt 0:00:59]} d6 {[%emt 0:00:56]} 6. h3 {[%emt 0:03:00]} Be6 {[%emt 0:00:22]} 7. d3 {[%emt 0:00:12]} h6 {[%emt 0:00:09]} 8. Nge2 {[%emt 0:00:56]} O-O {[%emt 0:00:30]} 9. O-O {[%emt 0:02:05]} d5 {[%emt 0:02:37]} 10. cxd5 {[%emt 0:21:05]} cxd5 {[%emt 0:00:16]} 11. d4 {[%emt 0:10:17]} exd4 {[%emt 0:00:56]} 12. Nxd4 {[%emt 0:00:49]} dxe4 {[%emt 0:06:54]} 13. Nxe6 {[%emt 0:02:09]} fxe6 {[%emt 0:00:12]} 14. Qxd8 {[%emt 0:12:01]} Rxd8 {[%emt 0:00:08]} 15. Nxe4 {[%emt 0:00:51]} Nxe4 {[%emt 0:00:59]} 16. Bxe4 {[%emt 0:00:26]} Nc6 {[%emt 0:00:42]} 17. Bxc6 {[%emt 0:02:02]} bxc6 {[%emt 0:00:11]} 18. Bf4 {[%emt 0:02:27]} Kf7 {[%emt 0:02:38]} 19. Kg2 {[%emt 0:15:29]} Bd4 {[%emt 0:07:02]} 20. Rab1 {[%emt 0:02:34]} e5 {[%emt 0:02:07]} 21. Be3 {[%emt 0:01:22]} c5 {[%emt 0:00:53]} 22. Bd2 {[%emt 0:05:54]} Re8 {[%emt 0:07:11]} 23. Rfe1 {[%emt 0:04:04] normal} 1/2-1/2

[Event "DVM U20w 2019"]
[Site "Braunschweig"]
[Date "2019.12.28"]
[Round "4"]
[White "Cerkez, Lorena"]
[Black "Danilova, Sofia"]
[Result "1-0"]
[ECO "B06"]
[WhiteElo "1000"]
[BlackElo "980"]
[Annotator "NA"]
[PlyCount "83"]
[EventDate "2019.12.27"]
[EventType "team-tourn"]
[EventRounds "7"]
[EventCountry "GER"]
[SourceTitle "playchess.com"]
[Source "ChessBase"]
[SourceQuality "1"]
[WhiteTeam "Düsseldorfer SK"]
[BlackTeam "SV Lingen"]
[TimeControl "40/5400+30:1800+30"]

1. e4 {[%emt 0:00:00]} g6 {[%emt 0:00:00]} 2. d4 {[%emt 0:00:02]} Bg7 {[%emt 0:00:00]} 3. Nf3 {[%emt 0:00:12]} d6 {[%emt 0:00:18]} 4. Bd3 {[%emt 0:03:11]} e5 {[%emt 0:00:55]} 5. d5 {[%emt 0:01:33]} c6 {[%emt 0:00:39]} 6. c4 {[%emt 0:06:56]} Nf6 {[%emt 0:01:16]} 7. Nc3 {[%emt 0:00:37]} Nbd7 {[%emt 0:01:04]} 8. h3 {[%emt 0:01:26]} Nc5 {[%emt 0:00:33]} 9. Bc2 {[%emt 0:00:55]} O-O {[%emt 0:00:53]} 10. O-O {[%emt 0:00:53]} Nh5 {[%emt 0:00:37]} 11. Ne2 {[%emt 0:01:18]} b5 12. b3 {[%emt 0:12:06]} Nf4 {[%emt 0:01:57]} 13. Nxf4 {[%emt 0:01:37]} exf4 {[%emt 0:00:10]} 14. Rb1 {[%emt 0:00:10]} Re8 {[%emt 0:01:19]} 15. Re1 {[%emt 0:00:17]} bxc4 {[%emt 0:02:35]} 16. bxc4 {[%emt 0:01:24]} cxd5 {[%emt 0:00:28]} 17. cxd5 {[%emt 0:00:25]} Bc3 {[%emt 0:03:25]} 18. Bd2 {[%emt 0:01:05]} Bf6 {[%emt 0:01:31]} 19. Bxf4 {[%emt 0:03:49]} Ba6 {[%emt 0:03:18]} 20. Bc1 {[%emt 0:07:46]} Be5 {[%emt 0:05:51]} 21. Nxe5 {[%emt 0:06:29]} dxe5 {[%emt 0:00:48]} 22. Bh6 {[%emt 0:06:28]} Qh4 {[%emt 0:02:00]} 23. Bc1 {[%emt 0:07:06]} Rab8 {[%emt 0:04:48]} 24. Ba3 {[%emt 0:02:53]} Nd7 {[%emt 0:01:57]} 25. Ba4 {[%emt 0:03:42]} Red8 {[%emt 0:00:26]} 26. Rxb8 {[%emt 0:04:04]} Nxb8 {[%emt 0:00:50]} 27. Bc2 {[%emt 0:01:39]} Nd7 {[%emt 0:01:35]} 28. Bd3 {[%emt 0:00:30]} Bc8 {[%emt 0:00:27]} 29. Qe2 {[%emt 0:01:16]} Nf6 {[%emt 0:01:01]} 30. Be7 {[%emt 0:01:16]} Re8 {[%emt 0:02:46]} 31. Bxf6 {[%emt 0:00:45]} Qxf6 {[%emt 0:00:19]} 32. Rc1 {[%emt 0:00:46]} Qg5 {[%emt 0:00:45]} 33. Qe3 {[%emt 0:01:16]} Qh4 {[%emt 0:01:48]} 34. Bb5 {[%emt 0:00:52]} Rd8 {[%emt 0:01:48]} 35. Rc7 {[%emt 0:01:59]} Qf6 {[%emt 0:05:40]} 36. Qc5 {[%emt 0:01:17]} Ba6 {[%emt 0:04:35]} 37. Rc6 {[%emt 0:00:55]} Qf4 {[%emt 0:01:45]} 38. Bxa6 {[%emt 0:02:04] normal} Kg7 {[%emt 0:03:00]} 39. Rc8 {[%emt 0:02:03] normal} Rxc8 {[%emt 0:01:26]} 40. Bxc8 {[%emt 0:00:30] normal} Qxe4 {[%emt 0:01:07]} 41. d6 {[%emt 0:30:46] normal} Qb1+ {[%emt 0:31:55]} 42. Kh2 {[%emt 0:00:20] normal} 1-0